bitfinex-derivatives/quotes_ETHF0:USTF0_20250906
["timestamp","ask_amount","ask_price","bid_price","bid_amount"]
[1757154910389,1.31885659,4300.6,4300.5,1.0575]
[1757154912194,1.31885659,4300.6,4300.5,0.5313]
[1757154916600,1.31885659,4300.6,4300.5,0.7302]
[1757154916797,1.31885659,4300.6,4300.5,0.4972]
[1757154916999,1.31885659,4300.6,4300.5,0.7302]
[1757154919300,1.31885659,4300.6,4300.5,4.50213]
[1757154919301,0.60775659,4300.6,4300.5,4.50213]
[1757154919502,3.9252,4301.5,4301.4,0.4003]
[1757154919700,0.3095,4301.4,4301.1,0.3057]
[1757154919899,0.7174,4301.1,4301.0,0.5387]
[1757154920101,1.44480989,4301.1,4301.0,0.5387]
[1757154921304,1.32599694,4301.1,4301.0,0.7364]
[1757154924801,1.32599694,4301.1,4301.0,0.5387]
[1757154925906,1.44470695,4301.1,4301.0,0.5387]
[1757154926310,1.44470489,4301.1,4301.0,0.5387]
[1757154926711,0.4079,4300.9,4300.8,0.233]
[1757154926906,0.7174,4300.9,4300.8,0.233]
[1757154927213,4.65250176,4300.9,4300.6,0.5387]
[1757154927403,0.7174,4300.7,4300.6,0.5387]
[1757154927599,1.44470176,4300.7,4300.6,0.5387]
[1757154927804,1.44470176,4300.7,4300.6,0.7364]
[1757154929310,1.44470176,4300.7,4300.6,0.939]
[1757154932914,1.44470176,4300.7,4300.5,0.233]
[1757154933107,0.3095,4300.3,4300.2,0.98921399]
[1757154933307,0.7174,4300.3,4300.2,1.62251399]
[1757154933706,0.7174,4300.3,4300.2,1.92821399]
[1757154935009,0.4079,4300.3,4300.2,1.92821399]
[1757154935209,0.1986,4300.3,4300.2,1.92821399]
[1757154935604,0.1986,4300.3,4300.2,1.78691399]
[1757154940314,0.1986,4300.3,4300.2,1.55391399]
[1757154940518,0.1986,4300.3,4300.2,1.78691399]
[1757154941115,0.1986,4300.3,4300.2,1.55391399]
[1757154941315,0.1986,4300.3,4300.2,1.78691399]
[1757154943320,0.1986,4300.3,4300.2,0.939]
[1757154943521,0.1986,4300.3,4300.2,1.78691399]
[1757154946215,0.1986,4300.3,4300.2,0.706]
[1757154946410,0.1986,4300.3,4300.2,0.939]
[1757154946411,4.53279839,4300.3,4300.2,0.939]
[1757154947514,4.53279839,4300.3,4300.2,0.706]
[1757154949222,4.53279839,4300.3,4300.2,0.3057]
[1757154950014,4.53279839,4300.3,4300.0,0.117]
[1757154950015,4.53279839,4300.3,4300.0,0.301]
[1757154950321,0.7019,4300.1,4300.0,0.301]
[1757154950525,1.30949839,4300.1,4300.0,0.301]
[1757154951320,1.30949839,4300.1,4299.9,0.1453]
[1757154951523,1.13459839,4300.0,4299.9,0.1453]
[1757154951718,1.54681468,4300.0,4299.9,0.1453]
[1757154951916,1.54681468,4300.0,4299.4,0.233]
[1757154952116,0.7019,4299.5,4299.4,0.6255]
[1757154952413,0.2936,4299.4,4298.7,3.2078]
[1757154952617,0.2936,4299.4,4299.2,0.233]
[1757154952824,0.90055131,4299.4,4299.3,32.401]
[1757154953123,1.30885131,4299.4,4299.3,0.301]
[1757154954023,1.30885131,4299.4,4299.2,0.301]
[1757154954224,1.30885131,4299.3,4299.2,0.6935]
[1757154958023,1.30885131,4299.3,4299.2,0.301]
[1757154958216,0.4083,4299.1,4299.0,0.1438]
[1757154958528,5.3633457,4299.1,4299.0,0.4448]
[1757154958728,5.3633457,4299.1,4299.0,0.1438]
[1757154959027,5.3633457,4299.1,4298.6,0.301]
[1757154959229,5.3633457,4299.1,4298.5,0.1269]
[1757154959230,0.7019,4298.6,4298.5,0.8204]
[1757154960627,0.7019,4298.6,4298.5,0.6935]
[1757154961222,0.7019,4298.6,4298.5,0.8211]
[1757154961519,0.2056,4298.6,4298.5,0.8211]
[1757154961721,0.2936,4298.9,4298.6,0.301]
[1757154961925,0.4992,4298.9,4298.8,0.6935]
[1757154963527,0.2056,4298.9,4298.8,0.6935]
[1757154963929,3.5014,4299.1,4299.0,0.1276]
[1757154963930,3.2078,4299.1,4299.0,0.1276]
[1757154964128,3.2078,4299.1,4299.0,1.90201399]
[1757154972541,3.6161,4299.1,4299.0,1.90201399]
[1757154972748,3.9097,4299.1,4299.0,1.90201399]
[1757154973146,3.9097,4299.1,4299.0,0.8211]
[1757154973447,3.9097,4299.1,4299.0,1.90201399]
[1757154977743,3.6161,4299.1,4299.0,1.90201399]
[1757154978444,0.7019,4299.1,4299.0,1.90201399]
[1757154979552,0.7019,4299.1,4299.0,1.0541]
[1757154979849,0.4083,4299.1,4299.0,0.233]
[1757154980143,1.01541882,4299.1,4298.8,0.3033]
[1757154980348,0.0672,4299.0,4298.9,0.233]
[1757154980549,0.7817,4299.0,4298.9,0.5363]
[1757154980951,0.7145,4299.0,4298.9,0.7413]
[1757154983252,1.3221882,4299.0,4298.9,0.7413]
[1757154983651,1.3221882,4299.0,4298.9,0.9512]
[1757154989553,1.3221882,4299.0,4298.9,0.7182]
[1757154989855,1.3221882,4299.0,4298.9,0.9512]
[1757154990254,0.6076882,4299.0,4298.9,0.9512]
[1757154990454,3.2078,4299.7,4298.9,0.9512]
[1757154990650,0.94098813,4299.6,4299.5,0.5335]
[1757154990856,1.23528813,4299.6,4299.5,1.0698]
[1757154991053,1.44098813,4299.6,4299.5,1.0698]
[1757154996565,0.60779681,4299.6,4299.5,1.0698]
[1757155002259,0.82229681,4299.6,4299.5,1.0698]
[1757155010380,0.60779681,4299.6,4299.5,1.0698]
[1757155010577,0.2943,4299.9,4299.5,1.0698]
[1757155010874,0.81437098,4299.8,4299.7,0.7046]
[1757155011267,0.60757098,4299.8,4299.7,0.7046]
[1757155011767,3.4146,4300.2,4300.1,0.7046]
[1757155011975,4.32907356,4300.2,4300.1,0.9376]
[1757155012473,4.52487356,4300.2,4300.1,0.9376]
[1757155016779,1.31707356,4300.2,4300.1,0.9376]
[1757155017170,0.81167356,4300.2,4300.1,0.9376]
[1757155018583,0.81143494,4300.2,4300.1,0.9376]
[1757155019182,0.60463494,4300.2,4300.1,0.9376]
[1757155019381,3.2078,4300.7,4300.5,0.1208]
[1757155019581,1.31684163,4300.6,4300.5,0.5472]
[1757155020079,1.31684163,4300.6,4300.5,0.7441]
[1757155020481,0.4026,4300.4,4300.3,0.3142]
[1757155020681,0.7122,4300.4,4300.3,0.5472]
[1757155022782,1.31675555,4300.4,4300.1,0.3142]
[1757155022974,0.7122,4300.4,4300.3,0.233]
[1757155023171,1.31676164,4300.4,4300.3,0.233]
[1757155023372,1.31676164,4300.4,4300.1,0.3142]
[1757155023577,0.7122,4300.2,4300.1,0.5111]
[1757155023878,0.7122,4300.2,4300.1,0.7441]
[1757155024280,0.7122,4300.2,4300.1,0.5472]
[1757155025085,1.31673795,4300.2,4300.1,0.5472]
[1757155025479,1.31673795,4300.2,4299.9,0.1631]
[1757155025680,0.8293,4300.0,4299.9,0.1631]
[1757155025885,1.43383795,4300.0,4299.9,0.1631]
[1757155026186,0.3096,4299.9,4299.7,0.233]
[1757155026383,1.31673795,4299.8,4299.7,0.233]
[1757155026679,1.31673795,4299.8,4299.7,0.7441]
[1757155026884,1.31673795,4299.8,4299.7,0.9376]
[1757155028488,1.31673795,4299.8,4299.7,0.7046]
[1757155028684,1.31673795,4299.8,4299.7,0.9376]
[1757155029388,1.00713795,4299.8,4299.7,0.9376]
[1757155029682,1.00713795,4299.8,4299.7,4.9376]
[1757155029683,0.60453795,4299.8,4299.7,4.9376]
[1757155029889,3.2078,4300.6,4300.5,0.8254]
[1757155030088,3.812393,4300.6,4300.5,1.0584]
[1757155033691,4.019193,4300.6,4300.5,1.0584]
[1757155035291,3.4146,4300.6,4300.5,1.0584]
[1757155036791,3.7242,4300.6,4300.5,1.0584]
[1757155037690,3.4146,4300.6,4300.5,1.0584]
[1757155038193,3.2078,4300.6,4300.5,1.0584]
[1757155038390,0.2068,4301.1,4301.0,0.8254]
[1757155038687,0.2068,4301.1,4301.0,1.0584]
[1757155038688,0.8110066,4301.1,4301.0,1.0584]
[1757155038893,0.2068,4301.1,4301.0,1.0584]
[1757155039295,0.7238,4301.1,4301.0,0.9376]
[1757155040690,0.7238,4301.1,4301.0,0.7441]
[1757155041891,0.7238,4301.1,4301.0,1.0731]
[1757155042596,3.2078,4301.3,4301.0,0.7589]
[1757155042892,3.9371,4301.3,4301.2,0.4939]
[1757155043087,4.5396064,4301.3,4301.2,0.4939]
[1757155043293,4.5396064,4301.3,4301.2,0.6958]
[1757155044896,4.2184064,4301.3,4301.2,0.6958]
[1757155045784,4.5396064,4301.3,4301.2,0.6958]
[1757155048198,3.9371,4301.3,4301.2,0.6958]
[1757155052604,0.7293,4301.3,4301.2,0.6958]
[1757155057206,0.4081,4301.3,4301.2,0.6958]
[1757155057504,0.7293,4301.3,4301.2,0.6958]
[1757155061701,0.1937,4301.3,4301.2,0.6958]
[1757155062101,3.4015,4301.8,4301.7,0.6958]
[1757155062301,4.00462472,4301.8,4301.7,0.9288]
[1757155062605,4.54022472,4301.8,4301.7,0.9288]
[1757155064206,4.54022472,4301.8,4301.7,0.7269]
[1757155064511,4.54022472,4301.8,4301.7,0.9288]
[1757155064708,4.54022472,4301.8,4301.7,0.7269]
[1757155064909,4.54022472,4301.8,4301.7,0.5277]
[1757155067614,4.54022472,4301.8,4301.7,0.7269]
[1757155071015,4.54022472,4301.8,4301.7,0.233]
[1757155072726,4.54022472,4301.8,4301.5,0.2956]
[1757155072926,0.7063,4301.6,4301.5,0.5286]
[1757155073127,1.30942472,4301.6,4301.5,0.5286]
[1757155073921,1.30942472,4301.6,4301.5,0.7396]
[1757155075621,1.30942472,4301.6,4301.5,0.953]
[1757155075818,1.30942472,4301.6,4301.5,1.075]
[1757155078928,1.30942472,4301.6,4301.5,0.7396]
[1757155079129,1.30942472,4301.6,4301.5,0.5286]
[1757155080024,0.60312472,4301.6,4301.5,0.953]
[1757155080229,0.7063,4301.6,4301.5,1.075]
[1757155080530,1.30942472,4301.6,4301.5,1.075]
[1757155082030,0.80252472,4301.6,4301.5,1.075]
[1757155082222,0.60312472,4301.6,4301.5,1.075]
[1757155082524,0.60312472,4301.7,4301.5,0.7794]
[1757155082729,0.60312472,4301.7,4301.6,1.56766983]
[1757155083027,0.80252472,4301.7,4301.6,1.56766983]
[1757155084824,0.60312472,4301.7,4301.6,1.56766983]
[1757155086326,3.2078,4302.3,4302.0,0.122]
[1757155086535,0.5043,4302.3,4302.2,1.56766983]
[1757155086728,1.10790989,4302.3,4302.2,1.56766983]
[1757155086928,1.30990989,4302.3,4302.2,1.56766983]
[1757155089434,0.7063,4302.3,4302.2,1.56766983]
[1757155089635,1.30940094,4302.3,4302.2,0.2956]
[1757155089936,1.30940094,4302.3,4302.0,0.161]
[1757155090136,0.1201,4302.5,4302.0,0.161]
[1757155090137,0.7063,4302.1,4302.0,0.161]
[1757155090330,0.7063,4302.1,4302.0,0.6896]
[1757155090633,1.30935087,4302.1,4302.0,0.6896]
[1757155090833,1.30935087,4302.1,4302.0,0.9006]
[1757155091638,1.30935087,4302.1,4302.0,0.7396]
[1757155092135,1.30935087,4302.1,4302.0,1.075]
[1757155092336,1.30935087,4302.1,4302.0,0.953]
[1757155092525,1.00445087,4302.1,4302.0,1.075]
[1757155092732,0.1994,4302.1,4302.0,1.075]
[1757155093332,3.5127,4302.4,4302.0,1.075]
[1757155093636,3.9141,4302.4,4302.3,1.56766983]
[1757155093837,4.51695721,4302.4,4302.3,1.56766983]
[1757155094440,4.51695721,4302.4,4302.3,0.72]
[1757155094737,4.51695721,4302.4,4302.3,1.56766983]
[1757155097634,1.30915721,4302.4,4302.3,1.56766983]
[1757155099041,0.60285721,4302.4,4302.3,1.56766983]
[1757155099231,1.12135721,4302.4,4302.3,1.56766983]
[1757155099636,1.32765721,4302.4,4302.3,1.56766983]
[1757155100237,0.60285721,4302.4,4302.3,1.56766983]
[1757155100540,0.2003,4302.6,4302.5,0.5395]
[1757155100731,0.2003,4302.6,4302.5,0.831]
[1757155100933,1.32739233,4302.6,4302.5,0.831]
[1757155101437,1.32739233,4302.6,4302.5,1.83402327]
[1757155104443,1.00919233,4302.6,4302.5,1.83402327]
[1757155104741,3.526,4302.9,4302.6,0.2915]
[1757155104742,3.2078,4302.9,4302.6,0.2915]
[1757155105044,3.9326,4302.9,4302.8,0.7043]
[1757155105244,4.53451341,4302.9,4302.8,0.7043]
[1757155107349,1.32671341,4302.9,4302.8,0.7043]
[1757155117351,4.53451341,4302.9,4302.8,0.7043]
[1757155119256,1.32671341,4302.9,4302.8,0.7043]
[1757155130163,1.30011341,4302.9,4302.8,0.7043]
[1757155130463,1.30011341,4302.9,4302.7,0.233]
[1757155130762,1.30961341,4302.8,4302.7,0.233]
[1757155130949,1.30961341,4302.8,4302.7,1.55352327]
[1757155131260,1.30961341,4302.8,4302.7,0.3175]
[1757155131461,1.30961341,4302.8,4302.7,1.23602327]
[1757155132661,1.30961341,4302.8,4302.7,1.55352327]
[1757155134363,1.30961341,4302.8,4302.7,1.76642327]
[1757155134561,1.30961341,4302.8,4302.7,1.96462327]
[1757155136262,1.01801341,4302.8,4302.7,1.96462327]
[1757155138965,0.60191341,4302.8,4302.7,1.96462327]
[1757155139267,3.4197,4303.0,4302.9,0.4111]
[1757155139462,4.02306916,4303.0,4302.9,0.7286]
[1757155139659,4.31466916,4303.0,4302.9,0.7286]
[1757155139864,4.51886916,4303.0,4302.9,0.7286]
[1757155143758,4.51886916,4303.0,4302.9,0.5304]
[1757155144971,4.51886916,4303.0,4302.9,0.81594702]
[1757155147068,1.31106916,4303.0,4302.9,0.81594702]
[1757155148173,4.51886916,4303.0,4302.9,0.60304702]
[1757155148370,4.58496916,4303.0,4302.9,0.28554702]
[1757155149873,4.51886916,4303.0,4302.9,0.81594702]
[1757155152074,4.51886916,4303.0,4302.9,0.5304]
[1757155152271,4.51886916,4303.0,4302.9,0.81594049]
[1757155155272,4.51886916,4303.0,4302.9,1.01414049]
[1757155155764,4.51886916,4303.0,4302.9,0.7286]
[1757155155970,4.51886916,4303.0,4302.9,1.01411989]
[1757155159480,4.51886916,4303.0,4302.9,1.01412857]
[1757155161583,4.51886916,4303.0,4302.9,1.86092965]
[1757155167092,4.51886916,4303.0,4302.9,1.86102573]
[1757155170696,4.51886916,4303.0,4302.9,1.86099266]
[1757155174103,4.51886916,4303.0,4302.9,1.66279266]
[1757155175401,4.51886916,4303.0,4302.9,1.44989266]
[1757155175597,4.58466916,4303.0,4302.9,1.13239266]
[1757155177908,4.58466916,4303.0,4302.9,1.44449266]
[1757155178102,4.51886916,4303.0,4302.9,1.44449266]
[1757155178308,4.51886916,4303.0,4302.9,1.64599266]
[1757155179906,4.51886916,4303.0,4302.9,1.86029266]
[1757155189319,4.51886916,4303.0,4302.9,1.86090459]
[1757155191921,4.51886916,4303.0,4302.9,1.87960459]
[1757155200930,4.51886916,4303.0,4302.9,1.44510459]
[1757155201128,4.58506916,4303.0,4302.9,1.13300459]
[1757155201427,4.58506916,4303.0,4302.9,0.28620351]
[1757155201730,4.58506916,4303.0,4302.9,1.43700459]
[1757155202230,4.51886916,4303.0,4302.9,1.43700459]
[1757155202833,4.51886916,4303.0,4302.9,1.64560459]
[1757155206533,4.51886916,4303.0,4302.9,1.64609343]
[1757155209942,4.51886916,4303.0,4302.9,1.43749343]
[1757155210241,4.58506916,4303.0,4302.9,1.13349343]
[1757155210543,4.58506916,4303.0,4302.9,1.43749343]
[1757155211140,4.51886916,4303.0,4302.9,1.43749343]
[1757155211947,4.51886916,4303.0,4302.9,1.64609343]
[1757155213045,4.22726916,4303.0,4302.9,1.84389343]
[1757155213552,4.54566916,4303.0,4302.9,1.84389343]
[1757155214653,4.53922831,4303.0,4302.9,1.84389343]
[1757155217353,4.53922831,4303.0,4302.9,1.13349343]
[1757155217554,4.60542831,4303.0,4302.9,1.13349343]
[1757155217955,4.60542831,4303.0,4302.9,0.28669235]
[1757155218658,4.83782831,4303.0,4302.9,0.28669235]
[1757155218849,4.60542831,4303.0,4302.9,0.28669235]
[1757155219051,8.60542831,4303.0,4302.7,0.1539]
[1757155219254,0.5557,4302.8,4302.7,0.1539]
[1757155219453,1.15262831,4302.8,4302.7,0.1539]
[1757155219650,1.01902831,4302.8,4302.5,0.84680108]
[1757155219851,0.5557,4302.6,4302.5,0.84680108]
[1757155220052,1.15262831,4302.6,4302.5,1.47360108]
[1757155220246,1.15262831,4302.6,4302.5,1.13750108]
[1757155221552,1.15262831,4302.6,4302.5,0.2907]
[1757155221958,0.4221,4302.4,4302.3,0.2907]
[1757155222258,0.5557,4302.1,4302.0,0.122]
[1757155222559,1.15262831,4302.1,4302.0,0.3298]
[1757155222760,1.15262831,4302.1,4302.0,0.2907]
[1757155224757,1.15262831,4302.1,4301.7,4.21104375]
[1757155224962,1.15262831,4302.1,4301.6,0.233]
[1757155224963,0.5572,4301.9,4301.8,0.2907]
[1757155225159,4.36192831,4301.9,4301.8,0.2907]
[1757155225552,4.36192831,4301.9,4301.3,1.00324375]
[1757155225754,0.5572,4301.7,4301.6,0.2907]
[1757155225958,1.15412831,4301.7,4301.6,0.2907]
[1757155226862,1.01952831,4301.7,4301.2,0.2907]
[1757155227068,0.5569,4301.0,4300.9,0.2907]
[1757155227261,0.4226,4301.0,4300.9,0.4985]
[1757155227766,1.01952831,4301.0,4300.9,0.4985]
[1757155228066,1.15382831,4301.0,4300.9,0.4985]
[1757155228859,1.01952831,4301.0,4300.9,0.4985]
[1757155229465,0.4226,4301.0,4300.9,0.4985]
[1757155231166,0.5569,4301.0,4300.9,0.4985]
[1757155232771,0.5569,4301.0,4300.9,0.2907]
[1757155233066,0.5569,4301.0,4300.9,0.4985]
[1757155234868,0.4226,4301.0,4300.9,0.4985]
[1757155235073,3.2078,4301.3,4301.2,0.7058]
[1757155235368,3.2078,4301.3,4301.2,1.70904375]
[1757155237479,0.2142,4301.6,4301.5,0.8341]
[1757155238574,0.4226,4301.6,4301.5,0.8341]
[1757155240374,0.5569,4301.6,4301.5,0.8341]
[1757155240681,0.4226,4301.6,4301.5,0.8341]
[1757155241776,3.2078,4301.8,4301.5,0.8341]
[1757155241982,3.2078,4301.8,4301.6,0.7058]
[1757155242276,3.4162,4301.8,4301.7,0.4985]
[1757155242481,4.22600355,4301.8,4301.7,0.4985]
[1757155242882,4.22600355,4301.8,4301.7,0.7058]
[1757155246580,4.36030355,4301.8,4301.7,0.7058]
[1757155248077,4.22600355,4301.8,4301.7,0.7058]
[1757155252283,4.36030355,4301.8,4301.7,0.707]
[1757155252484,4.36030355,4301.8,4301.7,0.2907]
[1757155255191,4.59330355,4301.8,4301.7,0.2907]
[1757155260983,4.59330355,4301.8,4301.7,0.4966]
[1757155261183,4.45900355,4301.8,4301.7,0.4966]
[1757155261988,4.59330355,4301.8,4301.7,0.4966]
[1757155262792,4.45900355,4301.8,4301.7,0.4966]
[1757155263796,4.59330355,4301.8,4301.7,0.4966]
[1757155264898,4.59330355,4301.8,4301.7,0.2907]
[1757155265200,0.5317,4301.6,4301.5,0.4556]
[1757155265502,0.5317,4301.6,4301.5,0.4371]
[1757155265699,0.99300355,4301.6,4301.5,0.643]
[1757155267102,0.99300355,4301.6,4301.5,0.8534]
[1757155269699,1.12730355,4301.6,4301.5,0.4371]
[1757155269894,1.12730355,4301.6,4301.5,0.643]
[1757155270597,0.99300355,4301.6,4301.5,0.643]
[1757155277316,0.99300355,4301.6,4301.5,0.8534]
[1757155278910,1.12760355,4301.6,4301.5,0.8534]
[1757155279823,1.12760355,4301.6,4301.5,0.31]
[1757155282410,1.12760355,4301.6,4301.5,0.6202]
[1757155285109,0.99300355,4301.6,4301.5,0.8201]
[1757155285314,0.59560355,4301.6,4301.5,0.8201]
[1757155285503,3.2078,4301.8,4301.6,0.7111]
[1757155285701,0.59708897,4301.7,4301.6,0.7111]
[1757155286806,0.59708897,4301.7,4301.6,1.55866999]
[1757155288111,0.80068897,4301.7,4301.6,1.55866999]
[1757155292315,1.00028897,4301.7,4301.6,1.55866999]
[1757155294111,1.00028897,4301.7,4301.6,0.7111]
[1757155295212,0.59708897,4301.7,4301.6,0.7111]
[1757155296717,0.80068897,4301.7,4301.6,0.7111]
[1757155299519,0.59708897,4301.7,4301.6,0.7111]
[1757155300020,0.80068897,4301.7,4301.6,0.7111]
[1757155302220,1.00028897,4301.7,4301.6,0.7111]
[1757155302424,1.13438897,4301.7,4301.6,0.7111]
[1757155302624,1.00028897,4301.7,4301.6,0.7111]
[1757155305722,1.13438897,4301.7,4301.6,0.7111]
[1757155306222,1.00028897,4301.7,4301.6,0.7111]
[1757155307724,0.59708897,4301.7,4301.6,0.7111]
[1757155307924,3.2078,4302.3,4302.2,0.7111]
[1757155308222,3.2078,4302.3,4302.2,1.55866999]
[1757155308929,3.6078,4302.3,4302.2,0.7111]
[1757155309121,3.7431,4302.3,4302.2,0.3171]
[1757155309422,3.6078,4302.3,4302.1,0.3101]
[1757155309625,0.5353,4302.2,4302.1,0.3101]
[1757155310222,0.7683,4302.2,4302.1,0.3101]
[1757155311025,0.7683,4302.2,4302.1,0.5221]
[1757155312821,0.4,4301.8,4301.7,0.3101]
[1757155313130,4.59066999,4301.8,4301.7,0.3101]
[1757155313324,3.7431,4301.8,4301.7,0.5221]
[1757155319027,3.2078,4302.3,4301.7,5.31302999]
[1757155319219,0.3048,4303.4,4303.2,0.4139]
[1757155319423,0.3048,4303.4,4302.7,3.4438]
[1757155319624,0.7048,4302.8,4302.7,4.1678]
[1757155319828,1.28580102,4302.8,4302.7,4.1678]
[1757155320031,1.28580102,4302.8,4302.7,4.40021]
[1757155320331,1.28580102,4302.8,4302.7,4.16421]
[1757155320733,1.28580102,4302.8,4302.7,4.77936999]
[1757155321428,0.7048,4302.8,4302.7,4.77936999]
[1757155322032,0.7048,4302.8,4302.7,3.6217]
[1757155322232,1.28536378,4302.8,4302.7,3.6217]
[1757155322727,1.28536378,4302.8,4302.7,3.9318]
[1757155323334,0.7048,4302.8,4302.7,3.9318]
[1757155324434,1.28483895,4302.8,4302.7,3.6217]
[1757155324630,1.28483895,4302.8,4302.7,3.9318]
[1757155324832,1.28483895,4302.8,4302.7,3.4198]
[1757155325024,1.28483895,4302.8,4302.7,3.70542885]
[1757155325229,1.28483895,4302.8,4302.7,4.21742885]
[1757155325628,1.28483895,4302.8,4302.7,3.70542885]
[1757155326236,1.28483895,4302.8,4302.7,4.01552885]
[1757155326637,0.7048,4302.8,4302.7,4.21742885]
[1757155326837,0.5031,4302.8,4302.7,4.21742885]
[1757155328034,0.3048,4303.4,4302.8,0.3101]
[1757155328240,0.7048,4303.4,4303.3,0.212]
[1757155328440,1.28448019,4303.4,4303.3,0.212]
[1757155329143,1.28448019,4303.4,4303.1,0.3101]
[1757155329440,0.7048,4303.2,4303.1,0.5221]
[1757155329634,1.28448019,4303.2,4303.1,0.5221]
[1757155330640,1.28448019,4303.2,4303.1,0.212]
[1757155331337,1.28448019,4303.2,4302.9,0.4624]
[1757155331338,0.8279,4303.0,4302.9,0.1523]
[1757155331545,2.25515018,4303.0,4302.9,0.1523]
[1757155332344,0.8279,4302.5,4302.4,0.212]
[1757155333033,0.5231,4302.5,4302.3,0.84756999]
[1757155333236,0.7048,4302.4,4302.3,1.05956999]
[1757155333437,0.7048,4302.4,4302.3,1.34496551]
[1757155333932,0.7048,4302.4,4302.3,1.34496552]
[1757155335143,0.7048,4302.4,4302.3,1.65506552]
[1757155338049,0.7048,4302.4,4302.3,1.85696552]
[1757155341244,0.5031,4302.4,4302.3,1.85696552]
[1757155341549,0.5225,4303.0,4302.9,0.2002]
[1757155341751,1.33228039,4303.0,4302.9,0.2002]
[1757155342047,1.65328039,4303.0,4302.9,0.2002]
[1757155342744,1.42087039,4303.0,4302.9,0.2002]
[1757155343046,0.7204,4302.4,4302.3,1.36056999]
[1757155343248,0.7204,4302.4,4302.3,1.84279605]
[1757155343437,0.7204,4302.4,4302.3,0.99522606]
[1757155344338,1.29801212,4302.4,4302.3,0.99522606]
[1757155345051,1.29801212,4302.4,4302.3,0.99532507]
[1757155347549,1.09441212,4302.4,4302.3,0.99532507]
[1757155347744,0.57761212,4302.4,4302.3,0.99532507]
[1757155355056,0.57761212,4302.4,4302.3,0.7097]
[1757155355558,0.89861212,4302.4,4302.3,0.7097]
[1757155355754,1.09441212,4302.4,4302.3,0.7097]
[1757155356052,1.29801212,4302.4,4302.3,0.7097]
[1757155357751,1.29801212,4302.4,4302.3,0.3969]
[1757155357946,1.29801212,4302.4,4302.3,0.2002]
[1757155358555,1.29801212,4302.4,4302.3,0.513]
[1757155358757,1.29801212,4302.4,4302.2,3.2078]
[1757155358957,0.7204,4302.4,4302.3,0.235]
[1757155359159,1.29912252,4302.4,4302.3,0.235]
[1757155365859,1.29912252,4302.4,4302.2,3.2078]
[1757155366066,1.29912252,4302.3,4302.2,3.4428]
[1757155366257,1.29912252,4302.3,4302.2,3.643]
[1757155367266,1.29912252,4302.3,4302.2,3.9558]
[1757155368372,1.29912252,4302.3,4302.2,4.1525]
[1757155373067,1.29912252,4302.3,4302.2,3.9175]
[1757155373267,1.29912252,4302.3,4302.2,4.1525]
[1757155378377,1.29912252,4302.3,4302.0,0.1506]
[1757155378580,1.26932252,4302.2,4302.1,0.235]
[1757155379174,1.26932252,4302.2,4302.0,0.1506]
[1757155379379,1.26932252,4302.1,4302.0,0.1506]
[1757155379876,0.6906,4301.8,4301.7,3.6429]
[1757155380181,1.26932252,4301.8,4301.7,3.6429]
[1757155380574,1.26932252,4301.8,4301.7,3.7026]
[1757155380777,1.26932252,4301.8,4301.7,3.9376]
[1757155382183,0.6906,4301.8,4301.7,4.1311]
[1757155382383,1.26929502,4301.8,4301.7,4.1311]
[1757155382685,1.26929502,4301.8,4301.7,3.2078]
[1757155382988,1.26929502,4301.8,4301.7,3.7026]
[1757155385285,1.26929502,4301.8,4301.7,3.8961]
[1757155388589,1.06929502,4301.8,4301.7,3.8961]
[1757155389881,1.06893633,4301.8,4301.7,3.8961]
[1757155390090,1.06893633,4301.8,4301.7,4.1301]
[1757155396600,0.57833633,4301.8,4301.7,5.36581192]
[1757155396799,3.2078,4302.6,4301.7,4.83865192]
[1757155396994,0.4115,4302.5,4302.3,1.00325192]
[1757155397296,0.2916,4302.4,4302.3,1.23725192]
[1757155397996,0.4906,4302.4,4302.3,4.44505192]
[1757155398202,0.6906,4302.4,4302.3,4.44505192]
[1757155399103,0.4906,4302.4,4302.3,4.44505192]
[1757155400000,0.2916,4302.4,4302.3,4.44505192]
[1757155400801,0.2916,4302.4,4302.3,4.21105192]
[1757155401101,0.4923,4302.4,4302.3,4.44505192]
[1757155403403,0.4923,4302.4,4302.3,3.4418]
[1757155404094,0.2916,4302.4,4302.3,3.4418]
[1757155404294,0.4923,4302.4,4302.3,3.4418]
[1757155405602,0.4923,4302.4,4302.3,4.288942]
[1757155405799,0.2916,4302.4,4302.3,4.288942]
[1757155406004,0.3184,4302.9,4302.3,4.288942]
[1757155406206,0.3184,4302.9,4302.8,0.847142]
[1757155406394,0.3184,4302.9,4302.8,1.081142]
[1757155406704,0.5191,4302.9,4302.8,1.081142]
[1757155408704,1.09465974,4302.9,4302.8,1.081142]
[1757155412406,0.89395974,4302.9,4302.8,1.081142]
[1757155412702,0.57555974,4302.9,4302.8,8.521342]
[1757155413207,0.4415,4303.5,4302.8,8.521342]
[1757155413407,0.4415,4303.5,4303.4,4.054942]
[1757155413608,0.4415,4303.5,4303.4,4.288942]
[1757155413807,1.01551064,4303.5,4303.4,4.288942]
[1757155415206,1.21621064,4303.5,4303.4,4.288942]
[1757155417506,1.41411064,4303.5,4303.4,4.288942]
[1757155420312,1.21621064,4303.5,4303.4,4.288942]
[1757155420615,1.41411064,4303.5,4303.4,4.288942]
[1757155426021,1.21621064,4303.5,4303.4,4.288942]
[1757155427318,1.41411064,4303.5,4303.4,4.288942]
[1757155427817,1.01551064,4303.5,4303.4,4.288942]
[1757155428619,1.01551064,4303.5,4303.4,4.291942]
[1757155428814,1.01551064,4303.5,4303.4,4.292842]
[1757155430513,0.89241064,4303.5,4303.4,4.292842]
[1757155430813,0.3063,4303.8,4303.5,0.0009]
[1757155431017,0.3063,4303.8,4303.7,0.851042]
[1757155431410,0.88001447,4303.8,4303.7,0.851042]
[1757155433524,1.09451447,4303.8,4303.7,0.850142]
[1757155433726,1.09451447,4303.8,4303.7,1.084142]
[1757155441129,1.09466782,4303.8,4303.7,1.084142]
[1757155452436,0.88016782,4303.8,4303.7,1.084142]
[1757155452739,0.88016782,4303.8,4303.7,1.085042]
[1757155453236,0.1224,4304.5,4303.7,1.31740199]